bitfinex-derivatives/quotes_BNBF0:USTF0_20251203
["timestamp","ask_amount","ask_price","bid_price","bid_amount"]
[1764730730738,0.70226136,886.94,885.32,2.78018106]
[1764730731034,0.70226136,886.93,885.32,2.78018106]
[1764730731233,0.70226136,886.92,885.33,2.78018106]
[1764730731440,0.70226136,886.91,885.33,2.78018106]
[1764730731633,0.70226136,886.9,885.33,2.78018106]
[1764730731836,0.70226136,886.89,885.33,2.78018106]
[1764730732038,0.70226136,886.88,885.33,2.78018106]
[1764730732334,0.70226136,886.87,885.32,2.78018106]
[1764730732539,0.70226136,886.86,885.32,2.78018106]
[1764730732739,0.70226136,886.85,885.32,2.78018106]
[1764730733034,0.70226136,886.84,885.27,2.78018106]
[1764730733234,0.70226136,886.83,885.27,2.78018106]
[1764730733434,0.70226136,886.82,885.28,2.78018106]
[1764730733740,0.83813746,887.1,885.28,2.78018106]
[1764730734040,0.7194771,887.09,885.28,2.78018106]
[1764730734335,0.7194771,887.08,885.38,2.78018106]
[1764730734538,0.7194771,887.07,885.38,2.78018106]
[1764730734834,0.7194771,887.06,885.42,2.78018106]
[1764730735038,0.7194771,887.05,885.42,2.78018106]
[1764730735236,0.7194771,887.04,885.42,2.78018106]
[1764730735438,0.7194771,887.03,885.51,2.78018106]
[1764730735634,7.86226312,887.2,885.51,2.78018106]
[1764730735837,0.70574101,887.19,885.51,2.78018106]
[1764730736038,0.70574101,887.18,885.51,2.78018106]
[1764730736240,0.70574101,887.17,885.51,2.78018106]
[1764730736535,0.70574101,887.16,885.51,2.78018106]
[1764730736740,0.70574101,887.15,885.51,2.78018106]
[1764730736941,0.70574101,887.14,885.55,2.78018106]
[1764730737139,0.70574101,887.13,885.55,2.78018106]
[1764730737337,0.70574101,887.12,885.55,2.78018106]
[1764730737542,0.70574101,887.11,885.55,2.78018106]
[1764730737738,0.70574101,887.1,885.55,2.78018106]
[1764730737942,0.70574101,887.09,885.55,2.78018106]
[1764730738238,0.70574101,887.08,885.55,2.78018106]
[1764730738442,0.70574101,887.07,885.55,2.78018106]
[1764730738641,0.70574101,887.06,885.56,2.78018106]
[1764730738942,0.70574101,887.05,885.56,2.78018106]
[1764730739142,0.70574101,887.04,885.56,2.78018106]
[1764730739438,7.86226312,887.2,885.56,2.78018106]
[1764730739639,0.69548877,887.19,885.63,2.78018106]
[1764730739838,0.69548877,887.18,885.63,2.78018106]
[1764730740042,0.69548877,887.17,885.63,2.78018106]
[1764730740240,0.69548877,887.16,885.63,2.78018106]
[1764730740443,0.69548877,887.15,885.63,2.78018106]
[1764730740643,0.69548877,887.14,885.64,2.78018106]
[1764730740843,0.69548877,887.13,885.64,2.78018106]
[1764730741142,0.69548877,887.12,885.64,2.78018106]
[1764730741340,7.86226312,887.2,885.64,2.78018106]
[1764730741539,0.69501609,887.19,885.64,2.78018106]
[1764730741840,0.69501609,887.18,885.65,2.78018106]
[1764730742038,0.69501609,887.17,885.65,2.78018106]
[1764730742245,0.69501609,887.16,885.65,2.78018106]
[1764730742445,0.69501609,887.15,885.65,2.78018106]
[1764730742644,0.69501609,887.14,885.65,2.78018106]
[1764730742841,7.86226312,887.2,885.65,2.78018106]
[1764730742842,0.69501609,887.13,885.65,2.78018106]
[1764730743041,0.69501609,887.12,885.65,2.78018106]
[1764730743242,0.69501609,887.11,885.64,2.78018106]
[1764730743546,0.69501609,887.1,885.64,2.78018106]
[1764730743743,7.86226312,887.2,885.64,2.78018106]
[1764730743947,0.69554078,887.19,885.64,2.78018106]
[1764730744148,0.69554078,887.18,885.64,2.78018106]
[1764730744348,0.69554078,887.17,885.64,2.78018106]
[1764730744545,0.69554078,887.16,885.64,2.78018106]
[1764730744748,0.69554078,887.15,885.64,2.78018106]
[1764730745048,0.69554078,887.14,885.64,2.78018106]
[1764730745248,0.69554078,887.13,885.64,2.78018106]
[1764730745448,0.69554078,887.12,885.64,2.78018106]
[1764730745650,0.69554078,887.11,885.64,2.78018106]
[1764730745849,0.69554078,887.1,885.64,2.78018106]
[1764730746046,7.86226312,887.2,885.64,2.78018106]
[1764730746244,0.69554982,887.19,885.64,2.78018106]
[1764730746445,0.69554982,887.18,885.64,2.78018106]
[1764730746649,0.69554982,887.17,885.64,2.78018106]
[1764730746947,0.69554982,887.16,885.62,2.78018106]
[1764730747151,0.69554982,887.15,885.62,2.78018106]
[1764730747347,0.69554982,887.14,885.62,2.78018106]
[1764730747646,0.69554982,887.13,885.62,2.78018106]
[1764730747851,0.69554982,887.12,885.62,2.78018106]
[1764730748052,0.69554982,887.11,885.62,2.78018106]
[1764730748254,0.69554982,887.1,885.62,2.78018106]
[1764730748453,0.69554982,887.09,885.62,2.78018106]
[1764730748651,0.69554982,887.08,885.62,2.78018106]
[1764730748952,7.86226312,887.2,885.62,2.78018106]
[1764730749149,0.69555505,887.19,885.62,2.78018106]
[1764730749352,0.69555505,887.18,885.62,2.78018106]
[1764730749550,0.69555505,887.17,885.62,2.78018106]
[1764730749749,0.69555505,887.16,885.62,2.78018106]
[1764730750051,0.69555505,887.15,885.62,2.78018106]
[1764730750249,0.69555505,887.14,885.62,2.78018106]
[1764730750449,0.69555505,887.13,885.62,2.78018106]
[1764730750653,0.69555505,887.12,885.62,2.78018106]
[1764730750851,0.69555505,887.11,885.62,2.78018106]
[1764730751155,0.69555505,887.1,885.62,2.78018106]
[1764730751453,7.86226312,887.2,885.62,2.78018106]
[1764730751454,0.69555505,887.09,885.62,2.78018106]
[1764730751653,0.69555505,887.08,885.62,2.78018106]
[1764730751854,7.86226312,887.2,885.62,2.78018106]
[1764730752051,0.69555677,887.19,885.62,2.78018106]
[1764730752251,0.69555677,887.18,885.62,2.78018106]
[1764730752454,0.69555677,887.17,885.62,2.78018106]
[1764730752754,0.69555677,887.16,885.62,2.78018106]
[1764730752952,0.69555677,887.15,885.62,2.78018106]
[1764730753150,0.69555677,887.14,885.62,2.78018106]
[1764730753455,0.69555677,887.13,885.62,2.78018106]
[1764730753652,0.69555677,887.12,885.62,2.78018106]
[1764730753856,0.69555677,887.11,885.62,2.78018106]
[1764730754156,0.69555677,887.1,885.62,2.78018106]
[1764730754356,0.69555677,887.09,885.62,2.78018106]
[1764730754554,0.69555677,887.08,885.62,2.78018106]
[1764730754758,7.86226312,887.2,885.62,2.78018106]
[1764730754958,0.69558135,887.19,885.62,2.78018106]
[1764730755155,0.69558135,887.18,885.62,2.78018106]
[1764730755357,0.69558135,887.17,885.62,2.78018106]
[1764730755553,0.69558135,887.16,885.62,2.78018106]
[1764730755758,7.86226312,887.2,885.62,2.78018106]
[1764730755759,0.69558135,887.15,885.62,2.78018106]
[1764730755960,0.69558135,887.14,885.62,2.78018106]
[1764730756261,0.69558135,887.13,885.62,2.78018106]
[1764730756455,0.69558135,887.12,885.62,2.78018106]
[1764730756655,0.69558135,887.11,885.63,2.78018106]
[1764730756957,0.69558135,887.1,885.63,2.78018106]
[1764730757260,0.69558135,887.09,885.63,2.78018106]
[1764730757560,0.69558135,887.08,885.63,2.78018106]
[1764730757759,7.86226312,887.2,885.63,2.78018106]
[1764730758060,0.69561632,887.19,885.63,2.78018106]
[1764730758259,0.69561632,887.18,885.63,2.78018106]
[1764730758559,0.69561632,887.17,885.63,2.78018106]
[1764730758757,0.69561632,887.16,885.63,2.78018106]
[1764730758953,0.69561632,887.15,885.63,2.78018106]
[1764730759156,0.69561632,887.14,885.63,2.78018106]
[1764730759357,0.69561632,887.13,885.63,2.78018106]
[1764730759557,0.69561632,887.12,885.63,2.78018106]
[1764730759759,0.69561632,887.11,885.63,2.78018106]
[1764730759957,0.69561632,887.1,885.63,2.78018106]
[1764730760259,0.69561632,887.09,885.63,2.78018106]
[1764730760457,0.69561632,887.08,885.63,2.78018106]
[1764730760657,7.86226312,887.2,885.63,2.78018106]
[1764730760857,0.69565793,887.19,885.63,2.78018106]
[1764730761063,0.69565793,887.18,885.63,2.78018106]
[1764730761361,0.69565793,887.17,885.63,2.78018106]
[1764730761661,0.69565793,887.16,885.63,2.78018106]
[1764730761861,0.69565793,887.15,885.63,2.78018106]
[1764730762058,0.69565793,887.14,885.63,2.78018106]
[1764730762360,0.69565793,887.13,885.63,2.78018106]
[1764730762558,0.69565793,887.12,885.63,2.78018106]
[1764730762760,0.69565793,887.11,885.63,2.78018106]
[1764730762960,0.69565793,887.1,885.63,2.78018106]
[1764730763259,0.69565793,887.09,885.63,2.78018106]
[1764730763466,0.69565793,887.08,885.63,2.78018106]
[1764730763659,0.69565793,887.07,885.63,2.78018106]
[1764730763863,7.86226312,887.2,885.63,2.78018106]
[1764730764065,0.69467219,887.19,885.63,2.78018106]
[1764730764259,0.69467219,887.18,885.63,2.78018106]
[1764730764460,7.86226312,887.2,885.63,2.78018106]
[1764730764461,0.69467219,887.17,885.63,2.78018106]
[1764730764764,0.69467219,887.16,885.63,2.78018106]
[1764730764964,0.69467219,887.15,885.62,2.78018106]
[1764730765166,0.69467219,887.14,885.62,2.78018106]
[1764730765465,0.69467219,887.13,885.62,2.78018106]
[1764730765665,0.69467219,887.12,885.62,2.78018106]
[1764730765960,0.69467219,887.11,885.62,2.78018106]
[1764730766166,0.69467219,887.1,885.62,2.78018106]
[1764730766366,0.69467219,887.09,885.52,2.78018106]
[1764730766561,0.69467219,887.08,885.52,2.78018106]
[1764730766861,0.69467219,887.07,885.52,2.78018106]
[1764730767065,0.69467219,887.06,885.51,2.78018106]
[1764730767266,0.69467219,887.05,885.51,2.78018106]
[1764730767467,0.69467219,887.04,885.58,2.78018106]
[1764730767666,0.69467219,887.03,885.58,2.78018106]
[1764730767867,0.69467219,887.02,885.58,2.78018106]
[1764730768071,0.69467219,887.01,885.58,2.78018106]
[1764730768268,0.69467219,887.0,885.58,2.78018106]
[1764730768568,7.86226312,887.2,885.6,2.78018106]
[1764730768768,0.6949868,887.19,885.6,2.78018106]
[1764730768964,7.86226312,887.2,885.6,2.78018106]
[1764730769268,0.69498667,887.19,885.6,2.78018106]
[1764730769564,0.69498667,887.18,885.6,2.78018106]
[1764730769767,0.69498667,887.17,885.6,2.78018106]
[1764730769962,0.69498667,887.16,885.6,2.78018106]
[1764730770163,0.69498667,887.15,885.6,2.78018106]
[1764730770366,0.69498667,887.14,885.6,2.78018106]
[1764730770564,0.69498667,887.13,885.6,2.78018106]
[1764730770863,0.69498667,887.12,885.6,2.78018106]
[1764730771061,0.69498667,887.11,885.6,2.78018106]
[1764730771264,0.69498667,887.1,885.6,2.78018106]
[1764730771464,0.69498667,887.09,885.6,2.78018106]
[1764730771666,0.69498667,887.08,885.61,2.78018106]
[1764730771867,0.69498667,887.07,885.61,2.78018106]
[1764730772064,0.69498667,887.06,885.61,2.78018106]
[1764730772264,0.69498667,887.05,885.61,2.78018106]
[1764730772464,0.69498667,887.04,885.61,2.78018106]
[1764730772764,0.69498667,887.03,885.61,2.78018106]
[1764730772968,0.69498667,887.02,885.61,2.78018106]
[1764730773267,0.69498667,887.01,885.6,2.78018106]
[1764730773468,0.69498667,887.0,885.6,2.78018106]
[1764730773765,0.69498667,886.99,885.59,2.78018106]
[1764730773967,7.86226312,887.2,885.59,2.78018106]
[1764730774164,0.69507682,887.19,885.59,2.78018106]
[1764730774368,0.69507682,887.18,885.59,2.78018106]
[1764730774569,0.69507682,887.17,885.59,2.78018106]
[1764730774863,0.69507682,887.16,885.59,2.78018106]
[1764730775069,0.69507682,887.15,885.59,2.78018106]
[1764730775269,0.69507682,887.14,885.6,2.78018106]
[1764730775469,0.69507682,887.13,885.6,2.78018106]
[1764730775668,0.69507682,887.12,885.6,2.78018106]
[1764730775865,0.69507682,887.11,885.59,2.78018106]
[1764730776070,0.69507682,887.1,885.59,2.78018106]
[1764730776265,0.69507682,887.09,885.59,2.78018106]
[1764730776476,0.69507682,887.08,885.6,2.78018106]
[1764730776670,0.69507682,887.07,885.6,2.78018106]
[1764730776865,8.70524129,887.2,885.28,3.89225349]
[1764730776866,0.69507682,887.06,885.51,2.78018106]
[1764730777070,0.69507682,887.05,885.51,2.78018106]
[1764730777269,0.69507682,887.04,885.51,2.78018106]
[1764730777474,0.69507682,887.03,885.51,2.78018106]
[1764730777772,0.69507682,887.02,885.51,2.78018106]
[1764730777973,0.69507682,887.01,885.51,2.78018106]
[1764730778178,0.69507682,887.0,885.51,2.78018106]
[1764730778377,0.69507682,886.99,885.52,2.78018106]
[1764730778575,0.69507682,886.98,885.52,2.78018106]
[1764730778874,0.69507682,886.97,885.53,2.78018106]
[1764730779072,0.69507682,886.96,885.53,2.78018106]
[1764730779276,0.69507682,886.95,885.53,2.78018106]
[1764730779574,0.69507682,886.94,885.53,2.78018106]
[1764730779776,0.69507682,886.93,885.53,2.78018106]
[1764730779976,0.69507682,886.92,885.53,2.78018106]
[1764730780173,7.86226312,887.2,885.53,2.78018106]
[1764730780375,0.69512333,887.19,885.53,2.78018106]
[1764730780676,0.69512333,887.18,885.56,2.78018106]
[1764730780876,0.69512333,887.17,885.56,2.78018106]
[1764730781074,0.69512333,887.16,885.56,2.78018106]
[1764730781274,0.69512333,887.15,885.56,2.78018106]
[1764730781476,0.69512333,887.14,885.56,2.78018106]
[1764730781675,0.69512333,887.13,885.56,2.78018106]
[1764730781878,0.69512333,887.12,885.56,2.78018106]
[1764730782079,0.69512333,887.11,885.64,2.78018106]
[1764730782278,0.69512333,887.1,885.64,2.78018106]
[1764730782478,0.69512333,887.09,885.64,2.78018106]
[1764730782679,0.69512333,887.08,885.64,2.78018106]
[1764730782976,0.69512333,887.07,885.64,2.78018106]
[1764730783280,0.69512333,887.06,885.64,2.78018106]
[1764730783479,0.69512333,887.05,885.64,2.78018106]
[1764730783676,0.69512333,887.04,885.64,2.78018106]
[1764730783980,0.69512333,887.03,885.64,2.78018106]
[1764730784181,0.69512333,887.02,885.64,2.78018106]
[1764730784479,7.86226312,887.2,885.64,2.78018106]
[1764730784679,0.69512739,887.19,885.64,2.78018106]
[1764730784877,0.69512739,887.18,885.64,2.78018106]
[1764730785076,0.69512739,887.17,885.64,2.78018106]
[1764730785274,0.69512739,887.16,885.64,2.78018106]
[1764730785478,0.69512739,887.15,885.64,2.78018106]
[1764730785679,0.69512739,887.14,885.64,2.78018106]
[1764730785975,0.69512739,887.13,885.64,2.78018106]
[1764730786175,0.69512739,887.12,885.64,2.78018106]
[1764730786379,0.69512739,887.11,885.64,2.78018106]
[1764730786576,0.69512739,887.1,885.64,2.78018106]
[1764730786781,0.69512739,887.09,885.68,2.78018106]
[1764730786981,0.69512739,887.08,885.68,2.78018106]
[1764730787182,7.86226312,887.2,885.72,2.78018106]
[1764730787382,0.69513455,887.19,885.72,2.78018106]
[1764730787582,0.69513455,887.18,885.72,2.78018106]
[1764730787778,0.69513455,887.17,885.73,2.78018106]
[1764730788078,0.69513455,887.16,885.73,2.78018106]
[1764730788279,0.69513455,887.15,885.73,2.78018106]
[1764730788478,0.69513455,887.14,885.73,2.78018106]
[1764730788678,0.69513455,887.13,885.72,2.78018106]
[1764730788879,0.69513455,887.12,885.72,2.78018106]
[1764730789079,0.69513455,887.11,885.72,2.78018106]
[1764730789278,0.69513455,887.1,885.71,2.78018106]
[1764730789583,7.86226312,887.2,885.71,2.78018106]
[1764730789584,0.69513455,887.09,885.71,2.78018106]
[1764730789775,0.69513455,887.08,885.72,2.78018106]
[1764730789979,0.69513455,887.07,885.72,2.78018106]
[1764730790179,0.84297817,887.35,885.72,2.78018106]
[1764730790383,0.69525608,887.34,885.72,2.78018106]
[1764730790581,0.69525608,887.33,885.72,2.78018106]
[1764730790779,0.69525608,887.32,885.72,2.78018106]
[1764730790986,0.69525608,887.31,885.72,2.78018106]
[1764730791285,0.69525608,887.3,885.72,2.78018106]
[1764730791481,0.69525608,887.29,885.72,2.78018106]
[1764730791681,0.69525608,887.28,885.72,2.78018106]
[1764730791886,0.69525608,887.27,885.72,2.78018106]
[1764730792084,0.69525608,887.26,885.72,2.78018106]
[1764730792382,0.69525608,887.25,885.73,2.78018106]
[1764730792687,0.69525608,887.24,885.73,2.78018106]
[1764730792888,0.69525608,887.23,885.73,2.78018106]
[1764730793188,0.69525608,887.22,885.73,2.78018106]
[1764730793385,0.69525608,887.21,885.73,2.78018106]
[1764730793689,0.69525608,887.2,885.73,2.78018106]
[1764730793887,0.69525608,887.19,885.73,2.78018106]
[1764730794089,0.69525608,887.18,885.73,2.78018106]
[1764730794387,0.69525608,887.17,885.73,2.78018106]
[1764730794588,0.69525608,887.16,885.73,2.78018106]
[1764730794888,0.69525608,887.15,885.73,2.78018106]
[1764730795088,0.69525608,887.14,885.73,2.78018106]
[1764730795288,0.69525608,887.13,885.73,2.78018106]
[1764730795489,0.69525608,887.12,885.73,2.78018106]
[1764730795686,0.69525608,887.11,885.73,2.78018106]
[1764730795886,0.69525608,887.1,885.73,2.78018106]
[1764730796089,0.69525608,887.09,885.73,2.78018106]
[1764730796288,0.69525608,887.08,885.73,2.78018106]
[1764730796489,0.69525608,887.07,885.73,2.78018106]
[1764730796784,0.69525608,887.06,885.73,2.78018106]
[1764730796986,0.84297817,887.36,885.73,2.78018106]
[1764730797190,0.69686513,887.35,885.87,2.78018106]
[1764730797385,0.69686513,887.34,885.87,2.78018106]
[1764730797591,0.69686513,887.33,885.86,2.78018106]
[1764730797790,0.69686513,887.32,885.86,2.78018106]
[1764730797991,0.69686513,887.31,885.86,2.78018106]
[1764730798291,1.11707841,887.66,885.56,3.89225349]
[1764730798292,0.69686513,887.3,885.88,2.78018106]
[1764730798492,0.69686513,887.29,885.88,2.78018106]
[1764730798692,0.69686513,887.28,885.86,2.78018106]
[1764730798891,0.69686513,887.27,885.86,2.78018106]
[1764730799092,0.69686513,887.26,885.86,2.78018106]
[1764730799291,0.69686513,887.25,885.86,2.78018106]
[1764730799494,0.69686513,887.24,885.86,2.78018106]
[1764730799694,0.69686513,887.23,885.86,2.78018106]
[1764730799990,0.84297817,887.52,885.86,2.78018106]
[1764730800193,0.69641255,887.51,885.86,2.78018106]
[1764730800392,0.69641255,887.5,885.86,2.78018106]
[1764730800590,0.69641255,887.49,885.86,2.78018106]
[1764730800793,0.69641255,887.48,885.86,2.78018106]
[1764730800990,0.84297817,887.52,885.86,2.78018106]
[1764730800991,0.69641255,887.47,885.86,2.78018106]
[1764730801192,0.69641255,887.46,885.86,2.78018106]
[1764730801394,0.69641255,887.45,885.85,2.78018106]
[1764730801593,0.69641255,887.44,885.85,2.78018106]
[1764730801795,0.69641255,887.43,885.85,2.78018106]
[1764730801995,0.69641255,887.42,885.85,2.78018106]
[1764730802195,0.69641255,887.41,885.85,2.78018106]
[1764730802392,0.69641255,887.4,885.84,2.78018106]
[1764730802594,0.69641255,887.39,885.84,2.78018106]
[1764730802796,0.69641255,887.38,885.84,2.78018106]
[1764730803092,0.69641255,887.37,885.84,2.78018106]
[1764730803293,0.69641255,887.36,885.84,2.78018106]
[1764730803593,0.69641255,887.35,885.84,2.78018106]
[1764730803793,0.69641255,887.34,885.84,2.78018106]
[1764730803992,0.69641255,887.33,885.84,2.78018106]
[1764730804196,0.69641255,887.32,885.84,2.78018106]
[1764730804493,0.69641255,887.31,885.83,2.78018106]
[1764730804797,0.69641255,887.3,885.83,2.78018106]
[1764730804995,0.69641255,887.29,885.82,2.78018106]
[1764730805199,0.69641255,887.28,885.82,2.78018106]
[1764730805395,0.69641255,887.27,885.82,2.78018106]
[1764730805596,0.84297817,887.15,885.43,2.78018106]
[1764730805796,0.69641255,887.14,885.43,2.78018106]
[1764730806097,0.69641255,887.13,885.43,2.78018106]
[1764730806296,0.84297817,886.99,885.43,2.78018106]
[1764730806496,0.69641255,886.98,885.43,2.78018106]
[1764730806701,0.69641255,886.97,885.26,2.78018106]
[1764730806900,0.69641255,886.96,885.26,2.78018106]
[1764730807099,0.69641255,886.95,885.23,2.78018106]
[1764730807301,0.69641255,886.94,885.23,2.78018106]
[1764730807503,0.84297817,886.86,885.22,0.19626145]
[1764730807702,0.69641255,886.85,885.22,0.19626145]
[1764730807902,0.69641255,886.84,885.22,0.19626145]
[1764730808102,0.69641255,886.83,885.22,0.19626145]
[1764730808302,0.69641255,886.82,885.22,0.19626145]
[1764730808607,0.69641255,886.81,885.14,2.78018106]
[1764730808901,0.69641255,886.8,885.14,2.78018106]
[1764730809105,0.69641255,886.79,885.14,2.78018106]
[1764730809306,0.69641255,886.78,885.14,2.78018106]
[1764730809505,0.69641255,886.77,885.03,2.78018106]
[1764730809700,0.69641255,886.76,885.03,2.78018106]
[1764730809901,0.69641255,886.75,885.03,2.78018106]
[1764730810206,0.69641255,886.74,884.98,2.78018106]
[1764730810405,0.69641255,886.73,884.98,2.78018106]
[1764730810700,0.69641255,886.72,884.95,0.19632013]
[1764730810904,0.69641255,886.71,884.95,0.19632013]
[1764730811101,0.69641255,886.7,884.95,0.19632013]
[1764730811301,0.69641255,886.69,884.95,0.19632013]
[1764730811501,0.69641255,886.68,884.95,0.19632013]
[1764730811704,0.69641255,886.67,884.95,0.19632013]
[1764730811902,0.69641255,886.66,884.95,0.19632013]
[1764730812101,0.69641255,886.65,884.95,0.19632013]
[1764730812303,0.69641255,886.64,884.95,0.19632013]
[1764730812501,0.69641255,886.63,884.95,0.19632013]
[1764730812701,0.69641255,886.62,884.95,0.19632013]
[1764730813002,0.69641255,886.61,884.95,0.19632013]
[1764730813207,0.69641255,886.6,884.95,0.19632013]
[1764730813404,0.69641255,886.59,884.95,0.19632013]
[1764730813601,0.69641255,886.58,884.95,0.19632013]
[1764730813801,0.69641255,886.57,884.95,0.19632013]
[1764730814006,0.69641255,886.56,884.95,0.19632013]
[1764730814205,0.69641255,886.55,884.95,0.19632013]
[1764730814407,0.73561911,886.54,884.95,0.19632013]
[1764730814707,0.73561911,886.53,884.81,2.78018106]
[1764730814908,0.73561911,886.52,884.83,0.19636056]
[1764730815109,0.73561911,886.51,884.83,0.19636056]
[1764730815305,0.73561911,886.5,884.83,0.19636056]
[1764730815509,0.73561911,886.49,884.83,0.19636056]
[1764730815708,0.84297817,886.78,884.83,0.19636056]
[1764730815908,0.7352389,886.77,884.83,0.19636056]
[1764730816109,0.7352389,886.76,884.83,0.19636056]
[1764730816304,0.7352389,886.75,884.83,0.19636056]
[1764730816604,0.7352389,886.74,884.83,0.19636056]
[1764730816810,0.7352389,886.73,884.95,2.78018106]
[1764730817008,0.7352389,886.72,884.95,2.78018106]
[1764730817308,0.84297817,887.04,884.96,2.78018106]
[1764730817509,0.73471345,887.03,884.96,2.78018106]
[1764730817709,0.73471345,887.02,884.96,2.78018106]
[1764730817905,0.73471345,887.01,884.97,2.78018106]
[1764730818111,0.73471345,887.0,884.97,2.78018106]
[1764730818310,0.84297817,887.27,885.19,2.78018106]
[1764730818507,0.73459103,887.26,885.19,2.78018106]
[1764730818712,0.73459103,887.25,885.19,2.78018106]
[1764730818912,0.73459103,887.24,885.27,2.78018106]
[1764730819110,0.73459103,887.23,885.27,2.78018106]
[1764730819310,0.73459103,887.22,885.27,2.78018106]
[1764730819612,0.73459103,887.21,885.26,2.78018106]
[1764730819810,0.73459103,887.2,885.26,2.78018106]
[1764730820114,0.73459103,887.19,885.3,2.78018106]
[1764730820310,0.73459103,887.18,885.3,2.78018106]
[1764730820611,0.73459103,887.17,885.29,2.78018106]
[1764730820911,0.73459103,887.16,885.29,2.78018106]
[1764730821114,0.73459103,887.15,885.29,2.78018106]
[1764730821308,0.73459103,887.14,885.29,2.78018106]
[1764730821508,0.73459103,887.13,885.27,2.78018106]
[1764730821706,0.73459103,887.12,885.27,2.78018106]
[1764730822004,0.73459103,887.11,885.27,2.78018106]
[1764730822207,0.73459103,887.1,885.27,2.78018106]
[1764730822409,6.66800731,887.18,885.27,2.78018106]
[1764730822410,0.73459103,887.09,885.27,2.78018106]
[1764730822612,0.73459103,887.08,885.27,2.78018106]
[1764730822813,6.66800731,887.18,885.27,2.78018106]
[1764730823108,0.73438465,887.17,885.27,2.78018106]
[1764730823307,0.73438465,887.16,885.27,2.78018106]
[1764730823510,0.73438465,887.15,885.27,2.78018106]
[1764730823709,0.73438465,887.14,885.27,2.78018106]
[1764730823908,0.73438465,887.13,885.27,2.78018106]
[1764730824117,0.73438465,887.12,885.21,2.78018106]
[1764730824413,0.73438465,887.11,885.21,2.78018106]
[1764730824611,0.73438465,887.1,885.19,2.78018106]
[1764730824812,0.73438465,887.09,885.19,2.78018106]
[1764730825109,0.73438465,887.08,885.19,2.78018106]
[1764730825313,0.73438465,887.07,885.19,2.78018106]
[1764730825516,0.73438465,887.06,885.19,2.78018106]
[1764730825713,0.73438465,887.05,885.2,2.78018106]
[1764730825907,0.73438465,887.04,885.2,2.78018106]
[1764730826112,0.73438465,887.03,885.2,2.78018106]
[1764730826313,0.73438465,887.02,885.2,2.78018106]
[1764730826513,0.73433491,887.01,885.2,2.78018106]
[1764730826708,0.73433491,887.0,885.03,2.78018106]
[1764730827009,0.73433491,886.99,885.03,2.78018106]
[1764730827210,0.73433491,886.98,885.03,2.78018106]
[1764730827410,0.73433491,886.97,885.03,2.78018106]
[1764730827613,0.73433491,886.96,885.03,2.78018106]
[1764730827813,0.73433491,886.95,885.03,2.78018106]
[1764730828014,0.73433491,886.94,885.03,2.78018106]
[1764730828314,0.73433491,886.93,885.02,2.78018106]
[1764730828513,0.73433491,886.92,885.02,2.78018106]
[1764730828711,0.73433491,886.91,884.95,2.78018106]
[1764730828916,0.73433491,886.9,884.95,2.78018106]
[1764730829212,0.73433491,886.89,884.95,2.78018106]
[1764730829516,0.73433491,886.88,884.95,2.78018106]
[1764730829812,0.73433491,886.87,884.95,2.78018106]
[1764730830009,0.73433491,886.86,884.95,2.78018106]
[1764730830212,0.73433491,886.85,884.95,2.78018106]
[1764730830415,0.73433491,886.84,884.94,2.78018106]
[1764730830610,0.73433491,886.83,884.94,2.78018106]
[1764730830815,0.73433491,886.82,884.94,2.78018106]
[1764730831013,0.73433491,886.81,884.94,2.78018106]
[1764730831210,0.73433491,886.8,884.94,2.78018106]
[1764730831412,0.73433491,886.79,884.94,2.78018106]
[1764730831615,0.73433491,886.78,884.94,2.78018106]
[1764730831810,0.73433491,886.77,884.89,2.78018106]
[1764730832017,0.73433491,886.76,884.89,2.78018106]
[1764730832215,0.73433491,886.75,884.89,2.78018106]
[1764730832412,0.73433491,886.74,884.87,2.78018106]
[1764730832616,0.73433491,886.73,884.87,2.78018106]
[1764730832917,0.73433491,886.72,884.83,0.19636056]
[1764730833113,0.73433491,886.71,884.83,0.19636056]
[1764730833414,0.73433491,886.7,884.83,0.19636056]
[1764730833718,0.73433491,886.69,884.83,0.19636056]
[1764730833919,0.73433491,886.68,884.83,0.19636056]
[1764730834217,0.73433491,886.67,884.83,0.19636056]
[1764730834417,0.73433491,886.66,884.83,0.19636056]
[1764730834614,0.73433491,886.65,884.83,0.19636056]
[1764730834814,0.73433491,886.64,884.83,0.19636056]
[1764730835014,0.73433491,886.63,884.83,0.19636056]
[1764730835213,0.73433491,886.62,884.83,0.19636056]
[1764730835519,0.73433491,886.61,884.83,0.19636056]
[1764730835814,0.73433491,886.6,884.83,0.19636056]
[1764730836013,0.73433491,886.59,884.83,0.19636056]
[1764730836317,0.73433491,886.58,884.83,0.19636056]
[1764730836617,0.73433491,886.57,884.83,0.19636056]
[1764730836818,0.73433491,886.56,884.83,0.19636056]
[1764730837018,0.73433491,886.55,884.83,0.19636056]
[1764730837220,0.73433491,886.54,884.83,0.19636056]
[1764730837418,0.73433491,886.53,884.83,0.19636056]
[1764730837720,0.73433491,886.52,884.83,0.19636056]
[1764730837916,0.84297817,886.8,884.83,0.19636056]
[1764730838121,0.73322116,886.79,884.83,0.19636056]
[1764730838323,0.73322116,886.78,884.83,0.19636056]
[1764730838517,0.73322116,886.77,884.83,0.19636056]
[1764730838821,0.73322116,886.76,884.83,0.19636056]
[1764730839020,0.73322116,886.75,884.83,0.19636056]
[1764730839216,0.73322116,886.74,884.83,0.19636056]